bitfinex-derivatives/quotes_BTCF0:USTF0_20241022
["timestamp","ask_amount","ask_price","bid_price","bid_amount"]
[1729564164871,0.02305092,67592.0,67591.0,0.023]
[1729564165073,0.002,67592.0,67591.0,0.207]
[1729564165273,0.112,67592.0,67591.0,0.097]
[1729564169568,0.112,67592.0,67591.0,0.15578103]
[1729564170973,0.002,67592.0,67591.0,0.207]
[1729564171174,0.002,67592.0,67591.0,0.29062814]
[1729564174179,0.002,67592.0,67591.0,0.37875467]
[1729564177367,0.002,67592.0,67591.0,0.29062814]
[1729564182768,0.002,67592.0,67591.0,0.207]
[1729564183075,0.002,67592.0,67591.0,0.29039199]
[1729564188480,0.002,67592.0,67591.0,0.37851852]
[1729564192197,0.002,67592.0,67591.0,0.29039199]
[1729564193293,0.3608,67606.0,67602.0,0.073987]
[1729564193486,0.3608,67606.0,67605.0,0.1689182]
[1729564193688,0.3608,67606.0,67605.0,0.11]
[1729564194489,0.3618,67606.0,67605.0,0.11]
[1729564194888,0.3628,67606.0,67605.0,0.118]
[1729564196097,0.3618,67606.0,67605.0,0.118]
[1729564196301,0.3628,67606.0,67605.0,0.125]
[1729564197294,0.3628,67606.0,67605.0,0.015]
[1729564200596,0.073987,67603.0,67602.0,0.05891652]
[1729564200798,0.073991,67599.0,67598.0,0.05891652]
[1729564201008,0.5808,67599.0,67596.0,0.05891652]
[1729564201211,0.4708,67597.0,67591.0,0.07364775]
[1729564201497,0.4708,67597.0,67587.0,0.07364775]
[1729564201498,0.074003,67588.0,67587.0,0.07364775]
[1729564201705,0.074004,67587.0,67585.0,0.07364775]
[1729564201913,0.11,67586.0,67580.0,0.11]
[1729564202091,0.16147541,67581.0,67580.0,0.11]
[1729564202293,0.29122398,67581.0,67578.0,0.00104]
[1729564202599,0.11,67579.0,67577.0,0.00221932]
[1729564202893,0.12974857,67578.0,67577.0,0.00221932]
[1729564203398,0.12974857,67578.0,67577.0,0.11221932]
[1729564204508,0.14374857,67578.0,67577.0,0.11221932]
[1729564204898,0.07466679,67578.0,67577.0,0.11221932]
[1729564205195,0.14232639,67578.0,67577.0,0.11221932]
[1729564205402,0.07466679,67578.0,67577.0,0.11221932]
[1729564205900,0.08866679,67578.0,67577.0,0.11221932]
[1729564206995,0.028,67578.0,67577.0,0.11221932]
[1729564207202,0.08866679,67578.0,67577.0,0.11221932]
[1729564207902,0.16268079,67578.0,67577.0,0.00221932]
[1729564208199,0.16268079,67578.0,67577.0,0.11221932]
[1729564208994,0.16268079,67578.0,67577.0,0.19626573]
[1729564208995,0.102014,67578.0,67577.0,0.19626573]
[1729564209395,0.102014,67578.0,67577.0,0.11221932]
[1729564210102,0.102014,67578.0,67577.0,0.00221932]
[1729564214898,0.102014,67578.0,67577.0,0.11221932]
[1729564215302,0.212014,67578.0,67577.0,0.11221932]
[1729564215692,0.212014,67578.0,67577.0,0.00221932]
[1729564217799,0.138,67578.0,67577.0,0.18623432]
[1729564218001,0.028,67578.0,67577.0,0.18623432]
[1729564219103,0.11,67600.0,67577.0,0.58301932]
[1729564219308,0.3608,67606.0,67592.0,0.11]
[1729564219309,0.11,67597.0,67592.0,0.11]
[1729564219805,0.073992,67598.0,67592.0,0.183999]
[1729564220007,0.183992,67598.0,67592.0,0.183999]
[1729564220205,0.02135697,67597.0,67592.0,0.183999]
[1729564220508,0.183992,67598.0,67592.0,0.183999]
[1729564220808,0.183992,67598.0,67596.0,0.11]
[1729564221111,0.11,67601.0,67596.0,0.11]
[1729564221410,0.11,67601.0,67598.0,0.11]
[1729564221812,0.001,67598.0,67594.0,0.073996]
[1729564222011,0.11,67596.0,67594.0,0.073996]
[1729564222407,0.11,67596.0,67593.0,0.11]
[1729564222609,0.001,67598.0,67593.0,0.11]
[1729564222610,0.001,67598.0,67596.0,0.073994]
[1729564222822,0.001,67601.0,67596.0,0.11]
[1729564223012,0.001,67601.0,67600.0,0.07399]
[1729564223904,0.11,67603.0,67602.0,0.073988]
[1729564224107,0.11,67603.0,67602.0,0.183988]
[1729564225115,0.11,67603.0,67602.0,0.073988]
[1729564225615,0.111,67603.0,67602.0,0.087988]
[1729564226309,0.001,67603.0,67602.0,0.087988]
[1729564226503,0.002,67603.0,67602.0,0.101988]
[1729564227109,0.002,67603.0,67602.0,0.271988]
[1729564227614,0.002,67603.0,67602.0,0.101988]
[1729564231911,0.002,67603.0,67602.0,0.028]
[1729564232507,0.002,67603.0,67602.0,0.3888]
[1729564234011,0.001,67603.0,67602.0,0.3748]
[1729564234211,0.245987,67603.0,67602.0,0.3888]
[1729564234513,0.245987,67603.0,67602.0,0.028]
[1729564239217,0.37342794,67603.0,67602.0,0.00901657]
[1729564243034,0.37340085,67603.0,67602.0,0.00901657]
[1729564245033,0.20340085,67603.0,67602.0,0.00901657]
[1729564245420,0.06157514,67603.0,67602.0,0.00901657]
[1729564245635,0.06157514,67603.0,67602.0,0.08300457]
[1729564246326,0.06157514,67603.0,67602.0,0.19300457]
[1729564246720,0.06218749,67603.0,67602.0,0.19300457]
[1729564247115,0.002,67603.0,67602.0,0.19300457]
[1729564249928,0.002,67603.0,67602.0,0.21436026]
[1729564251225,0.002,67603.0,67602.0,0.28790565]
[1729564251529,0.002,67603.0,67602.0,0.37136123]
[1729564251732,0.002,67603.0,67602.0,0.3713812]
[1729564251923,0.002,67603.0,67602.0,0.28790565]
[1729564252324,0.002,67603.0,67602.0,0.3714042]
[1729564253624,0.002,67603.0,67602.0,0.28790565]
[1729564253920,0.002,67603.0,67602.0,0.37139659]
[1729564254232,0.002,67603.0,67602.0,0.21436026]
[1729564262343,0.06203269,67603.0,67602.0,0.09534369]
[1729564263041,0.13039242,67603.0,67602.0,0.09534369]
[1729564268435,1e-08,67611.0,67610.0,0.073979]
[1729564268739,1e-08,67611.0,67610.0,0.654779]
[1729564269137,1e-08,67611.0,67610.0,0.544779]
[1729564269338,1e-08,67611.0,67610.0,0.62950731]
[1729564269631,0.00100001,67611.0,67610.0,0.63650731]
[1729564270140,0.00200001,67611.0,67610.0,0.28370731]
[1729564270437,0.00200001,67611.0,67610.0,0.76290731]
[1729564274536,0.00200001,67611.0,67610.0,0.7846623]
[1729564275930,0.002,67611.0,67610.0,0.7846623]
[1729564277440,0.002,67611.0,67610.0,0.62595499]
[1729564277441,0.06025546,67611.0,67610.0,0.62595499]
[1729564277646,0.12659144,67611.0,67610.0,0.62595499]
[1729564278245,0.12659144,67611.0,67610.0,0.69993399]
[1729564282737,0.12659144,67611.0,67610.0,0.80993399]
[1729564283043,0.07845675,67630.0,67629.0,0.073958]
[1729564283240,0.19201566,67630.0,67629.0,0.544758]
[1729564283538,0.073948,67638.0,67629.0,0.4708]
[1729564283740,0.073948,67638.0,67637.0,0.11]
[1729564284240,0.19201566,67639.0,67637.0,0.183949]
[1729564284440,0.02080541,67640.0,67637.0,0.183949]
[1729564284639,0.001,67638.0,67637.0,0.183949]
[1729564285847,0.002,67638.0,67637.0,0.186949]
[1729564286050,0.001,67638.0,67637.0,0.186949]
[1729564286240,0.001,67638.0,67637.0,0.194949]
[1729564286445,0.001,67638.0,67637.0,0.084949]
[1729564286751,0.001,67638.0,67637.0,0.085949]
[1729564286752,0.002,67638.0,67637.0,0.085949]
[1729564287939,0.002,67638.0,67637.0,0.195949]
[1729564289647,0.002,67638.0,67637.0,0.085949]
[1729564292253,0.002,67638.0,67636.0,0.3608]
[1729564292254,0.19371596,67638.0,67636.0,0.32833593]
[1729564292443,0.19171596,67637.0,67636.0,0.16551795]
[1729564293051,0.30171596,67637.0,67636.0,0.23946895]
[1729564293352,0.30171596,67637.0,67636.0,0.073951]
[1729564294348,0.30171596,67637.0,67634.0,0.11]
[1729564294544,0.19171596,67636.0,67634.0,0.11]
[1729564294747,0.19171596,67635.0,67634.0,0.183953]
[1729564295950,0.19171596,67635.0,67634.0,0.192953]
[1729564296644,0.19371596,67635.0,67634.0,0.193953]
[1729564298147,0.19371596,67635.0,67634.0,0.083953]
[1729564298352,0.19371596,67635.0,67634.0,0.01]
[1729564299351,0.002,67635.0,67634.0,0.01]
[1729564300451,0.44556,67635.0,67620.0,0.36301804]
[1729564300753,0.11,67624.0,67620.0,0.36301804]
[1729564300955,0.11,67624.0,67621.0,0.11]
[1729564301152,0.11,67624.0,67623.0,0.073965]
[1729564301958,0.11,67627.0,67623.0,0.183965]
[1729564302462,0.001,67624.0,67623.0,0.183965]
[1729564302954,0.001,67624.0,67623.0,0.123]
[1729564303156,0.001,67624.0,67623.0,0.196965]
[1729564303558,0.002,67624.0,67623.0,0.196965]
[1729564304663,0.002,67624.0,67623.0,0.086965]
[1729564304860,0.112,67624.0,67623.0,0.013]
[1729564305161,0.185964,67624.0,67623.0,0.013]
[1729564306253,0.075964,67624.0,67623.0,0.013]
[1729564306455,0.185964,67624.0,67623.0,0.013]
[1729564306659,0.002,67624.0,67623.0,0.123]
[1729564306854,0.002,67624.0,67623.0,0.196965]
[1729564307659,0.002,67624.0,67623.0,0.24106016]
[1729564307860,0.002,67624.0,67623.0,0.24099762]
[1729564308060,0.002,67624.0,67623.0,0.306965]
[1729564308266,0.002,67624.0,67623.0,0.256965]
[1729564309762,0.002,67624.0,67623.0,0.27816912]
[1729564311556,0.002,67624.0,67623.0,0.35166105]
[1729564311862,0.002,67624.0,67623.0,0.27816912]
[1729564312268,0.002,67624.0,67623.0,0.44337161]
[1729564312665,0.002,67624.0,67623.0,0.36987968]
[1729564314362,0.05045558,67624.0,67623.0,0.02120412]
[1729564314573,0.05045558,67624.0,67623.0,0.243965]
[1729564314867,0.10563235,67624.0,67623.0,0.243965]
[1729564322377,0.002,67624.0,67623.0,0.243965]
[1729564323072,0.002,67624.0,67623.0,0.073965]
[1729564323272,0.075964,67624.0,67623.0,0.04409535]
[1729564323580,0.073966,67622.0,67620.0,0.00221804]
[1729564323771,0.243966,67622.0,67620.0,0.00221804]
[1729564324170,0.002,67624.0,67620.0,0.17221804]
[1729564324369,0.002,67624.0,67623.0,0.243965]
[1729564324981,0.001,67624.0,67623.0,0.243965]
[1729564326277,0.073961,67627.0,67624.0,0.073964]
[1729564327777,0.075961,67627.0,67624.0,0.073964]
[1729564328283,0.185961,67627.0,67624.0,0.183964]
[1729564329374,0.1006302,67626.0,67624.0,0.0857138]
[1729564329580,0.1006302,67625.0,67624.0,0.0857138]
[1729564330482,0.1006302,67625.0,67624.0,0.073964]
[1729564330483,0.2106302,67625.0,67624.0,0.073964]
[1729564330876,0.2106302,67625.0,67620.0,0.00221804]
[1729564331082,0.2106302,67625.0,67620.0,0.07618604]
[1729564331083,0.11,67622.0,67620.0,0.07618604]
[1729564331378,0.1006302,67621.0,67620.0,0.07618604]
[1729564332282,0.04705186,67621.0,67620.0,0.07618604]
[1729564332976,0.04705186,67621.0,67620.0,0.18618604]
[1729564333871,0.04805186,67621.0,67620.0,0.18618604]
[1729564334481,0.04905186,67621.0,67620.0,0.18618604]
[1729564335581,0.05424924,67621.0,67620.0,0.18618604]
[1729564335782,0.04905186,67621.0,67620.0,0.18618604]
[1729564336589,0.10136076,67621.0,67620.0,0.18618604]
[1729564336787,0.04819154,67621.0,67620.0,0.18618604]
[1729564337085,0.06242756,67628.0,67620.0,0.66585804]
[1729564337287,0.06242756,67635.0,67630.0,0.073957]
[1729564337486,0.3608,67636.0,67634.0,0.11]
[1729564337681,0.3608,67636.0,67635.0,0.073952]
[1729564338083,0.3608,67636.0,67635.0,0.183952]
[1729564340192,0.3618,67636.0,67635.0,0.183952]
[1729564340383,0.3618,67636.0,67635.0,0.243952]
[1729564340584,0.3628,67636.0,67635.0,0.243952]
[1729564340783,0.3628,67636.0,67635.0,0.31740002]
[1729564340784,0.002,67636.0,67635.0,0.31740002]
[1729564341185,0.002,67636.0,67635.0,0.34211963]
[1729564341384,0.002,67636.0,67635.0,0.26867161]
[1729564341785,0.002,67636.0,67635.0,0.34211963]
[1729564342393,0.002,67636.0,67635.0,0.26867161]
[1729564344086,0.002,67636.0,67635.0,0.34211963]
[1729564344492,0.002,67636.0,67635.0,0.26867161]
[1729564352392,0.09652954,67636.0,67634.0,0.34825562]
[1729564352597,0.09452954,67635.0,67634.0,0.073953]
[1729564352806,0.09452954,67635.0,67634.0,0.243953]
[1729564353897,0.09552954,67635.0,67634.0,0.252953]
[1729564354712,0.09552954,67635.0,67634.0,0.27859342]
[1729564354891,0.09652954,67635.0,67634.0,0.27859342]
[1729564359404,0.002,67635.0,67634.0,0.10859342]
[1729564359599,0.002,67635.0,67634.0,0.27859342]
[1729564360407,0.002,67635.0,67634.0,0.33734511]
[1729564360602,0.002,67635.0,67634.0,0.27859342]
[1729564361100,0.002,67635.0,67634.0,0.33734511]
[1729564361305,0.002,67635.0,67634.0,0.27859342]
[1729564361702,0.002,67635.0,67634.0,0.40439342]
[1729564362413,0.002,67635.0,67634.0,0.34439342]
[1729564366808,0.002,67635.0,67634.0,0.21859342]
[1729564371520,0.09117017,67635.0,67634.0,0.21859342]
[1729564371723,0.05615155,67648.0,67646.0,0.073939]
[1729564372018,0.05615155,67648.0,67647.0,0.183938]
[1729564373322,0.05715155,67648.0,67647.0,0.183938]
[1729564374026,0.05815155,67648.0,67647.0,0.183938]
[1729564374721,0.002,67648.0,67647.0,0.197938]
[1729564374927,0.002,67648.0,67647.0,0.204938]
[1729564375327,0.073924,67661.0,67656.0,0.073929]
[1729564375526,0.073924,67661.0,67659.0,0.11]
[1729564376724,0.09881082,67661.0,67659.0,0.11]
[1729564377224,0.09981082,67661.0,67659.0,0.11]
[1729564377822,0.09981082,67661.0,67659.0,0.116]
[1729564378228,0.09981082,67661.0,67659.0,0.12]
[1729564378626,0.4434,67660.0,67659.0,0.01]
[1729564378928,0.5534,67660.0,67659.0,0.01]
[1729564379528,0.737324,67660.0,67659.0,0.01]
[1729564379733,0.628324,67660.0,67659.0,0.005]
[1729564379931,0.738324,67660.0,67659.0,0.005]
[1729564380130,0.628324,67660.0,67659.0,0.005]
[1729564380321,0.628324,67660.0,67659.0,0.012]
[1729564380527,0.629324,67660.0,67659.0,0.012]
[1729564381827,0.629324,67660.0,67646.0,0.30008137]
[1729564381828,0.14659276,67660.0,67646.0,0.30008137]
[1729564382029,0.11,67651.0,67649.0,0.183936]
[1729564382330,0.08872288,67650.0,67649.0,0.183936]
[1729564384225,0.08872288,67650.0,67649.0,0.191936]
[1729564384226,0.08972288,67650.0,67649.0,0.191936]
[1729564384739,0.25197836,67650.0,67649.0,0.191936]
[1729564384923,0.19972288,67650.0,67649.0,0.191936]
[1729564385234,0.09072288,67650.0,67649.0,0.191936]
[1729564389728,0.002,67650.0,67649.0,0.191936]
[1729564398138,0.002,67650.0,67649.0,0.081936]
[1729564398928,0.002,67650.0,67649.0,0.191936]
[1729564400952,0.002,67650.0,67649.0,0.301936]
[1729564401245,0.073916,67668.0,67662.0,0.073922]
[1729564401437,0.073916,67668.0,67662.0,0.183922]
[1729564402240,0.00221714,67669.0,67662.0,0.183922]
[1729564402547,0.00221714,67669.0,67662.0,0.185922]
[1729564403642,0.11,67670.0,67662.0,0.185922]
[1729564404342,0.13701741,67670.0,67662.0,0.185922]
[1729564404536,0.13701741,67670.0,67662.0,0.188922]
[1729564404737,0.13701741,67670.0,67656.0,0.11932]
[1729564404738,0.44648544,67663.0,67656.0,0.05951726]
[1729564404946,0.44648544,67663.0,67661.0,0.3608]
[1729564404947,0.13964261,67662.0,67661.0,0.3608]
[1729564405241,0.00221697,67677.0,67661.0,0.3608]
[1729564405444,0.00221697,67677.0,67676.0,0.183907]
[1729564406536,0.11221697,67677.0,67676.0,0.11]
[1729564406736,0.11221697,67677.0,67676.0,0.006]
[1729564406737,0.11321697,67677.0,67676.0,0.006]
[1729564407242,0.111,67677.0,67676.0,0.006]
[1729564407749,0.4718,67677.0,67676.0,0.006]
[1729564408245,0.52581844,67677.0,67676.0,0.008]
[1729564409240,0.59972444,67677.0,67676.0,0.008]
[1729564410051,0.64509984,67677.0,67676.0,0.008]
[1729564410941,0.68119384,67677.0,67665.0,0.073919]
[1729564411147,0.11,67666.0,67665.0,0.073919]
[1729564411343,0.1553754,67666.0,67665.0,0.073919]
[1729564411749,0.11,67666.0,67665.0,0.073919]
[1729564412251,0.112,67666.0,67665.0,0.201919]
[1729564412438,0.002,67666.0,67665.0,0.201919]
[1729564414953,0.112,67666.0,67665.0,0.201919]
[1729564416447,0.002,67666.0,67665.0,0.201919]
[1729564419844,0.03820118,67666.0,67665.0,0.201919]
[1729564420155,0.0835769,67666.0,67665.0,0.201919]
[1729564422754,0.08357649,67666.0,67665.0,0.201919]
[1729564424658,0.08357649,67666.0,67665.0,0.018]
[1729564424859,0.19357649,67666.0,67665.0,0.018]
[1729564425961,0.19357649,67666.0,67663.0,0.22932]
[1729564425962,0.24659756,67666.0,67655.0,0.00104]
[1729564426166,0.11,67656.0,67655.0,0.07393]
[1729564426365,0.19157649,67656.0,67655.0,0.07393]
[1729564427359,0.19157649,67656.0,67655.0,0.07493]
[1729564427662,0.19157649,67656.0,67655.0,0.1021468]
[1729564428668,0.124,67656.0,67655.0,0.1011468]
[1729564428866,0.138,67656.0,67655.0,0.1011468]
[1729564432464,0.028,67656.0,67655.0,0.1011468]
[1729564432666,0.1622802,67658.0,67655.0,0.5806568]
[1729564432966,0.1622802,67658.0,67657.0,0.183928]
[1729564433977,0.1762802,67658.0,67657.0,0.183928]
[1729564435264,0.1902802,67658.0,67657.0,0.183928]
[1729564435665,0.1762802,67658.0,67657.0,0.183928]
[1729564435866,0.1902802,67658.0,67657.0,0.184928]
[1729564438369,0.1902802,67658.0,67657.0,0.28777652]
[1729564438569,0.028,67658.0,67657.0,0.28777652]
[1729564442264,0.10958062,67658.0,67657.0,0.11]
[1729564443478,0.10958062,67658.0,67657.0,0.183928]
[1729564445173,0.10957579,67658.0,67657.0,0.073928]
[1729564445367,0.10957579,67658.0,67657.0,0.183928]
[1729564449079,0.16247965,67668.0,67667.0,0.073917]
[1729564449383,0.544703,67680.0,67676.0,0.073906]
[1729564449583,0.544703,67680.0,67677.0,0.073906]
[1729564449883,0.11,67678.0,67677.0,0.073906]
[1729564451076,0.111,67678.0,67677.0,0.078906]
[1729564451983,0.111,67678.0,67677.0,0.089906]
[1729564454578,0.111,67678.0,67677.0,0.11590274]
[1729564455372,0.001,67678.0,67677.0,0.11590274]
[1729564457280,0.13557781,67678.0,67677.0,0.11]
[1729564457683,0.13557781,67678.0,67677.0,0.183906]
[1729564460887,0.08256462,67678.0,67677.0,0.183906]
[1729564463191,0.19256462,67678.0,67677.0,0.183906]
[1729564464191,0.111,67678.0,67677.0,0.183906]
[1729564464590,0.111,67678.0,67677.0,0.20997078]
[1729564467088,0.4718,67678.0,67677.0,0.20997078]
[1729564468094,0.4718,67678.0,67677.0,0.09997078]
[1729564469493,0.001,67678.0,67677.0,0.20997078]
[1729564472302,0.13557642,67678.0,67676.0,0.11]
[1729564472504,0.001,67678.0,67677.0,0.073906]
[1729564472803,0.13557745,67678.0,67677.0,0.073906]
[1729564473694,0.49637745,67678.0,67677.0,0.073906]
[1729564474501,0.68935753,67678.0,67677.0,0.073906]
[1729564475293,0.68835753,67678.0,67677.0,0.083906]
[1729564475496,0.49737821,67678.0,67677.0,0.083906]
[1729564479307,0.3628,67678.0,67677.0,0.083906]
[1729564480119,0.3628,67678.0,67677.0,0.11094274]
[1729564484725,0.4728,67678.0,67677.0,0.11094274]
[1729564486627,0.3628,67678.0,67677.0,0.11094274]
[1729564494432,0.4973758,67678.0,67673.0,0.08102377]
[1729564494634,0.1345758,67677.0,67676.0,0.073907]
[1729564495634,0.1355758,67677.0,67676.0,0.085907]
[1729564497542,0.1365758,67677.0,67676.0,0.088907]
[1729564498046,0.1365758,67677.0,67676.0,0.015]
[1729564498341,0.1365758,67677.0,67676.0,0.088907]
[1729564498939,0.13657675,67677.0,67676.0,0.088907]
[1729564500633,0.24657675,67677.0,67676.0,0.088907]
[1729564500831,0.32048275,67677.0,67676.0,0.015]
[1729564501238,0.13657675,67677.0,67676.0,0.088907]
[1729564502343,0.002,67677.0,67676.0,0.088907]
[1729564509346,0.002,67677.0,67670.0,0.13903045]
[1729564509347,0.13657233,67677.0,67670.0,0.13903045]
[1729564509536,0.13457233,67676.0,67675.0,0.073908]
[1729564509736,0.13457233,67676.0,67675.0,0.183908]
[1729564511246,0.13557233,67676.0,67675.0,0.189908]
[1729564512250,0.13557371,67676.0,67675.0,0.189908]
[1729564512450,0.13657371,67676.0,67675.0,0.190908]
[1729564514742,0.24657371,67676.0,67675.0,0.080908]
[1729564515250,0.24657371,67676.0,67675.0,5.080908]
[1729564515444,0.24657371,67676.0,67675.0,4.84423099]
[1729564515846,0.26746968,67676.0,67675.0,4.84423099]
[1729564516050,1.29521573,67676.0,67675.0,4.84423099]
[1729564516742,1.18521573,67676.0,67675.0,4.84423099]
[1729564516943,1.42151468,67676.0,67675.0,4.84423099]
[1729564517144,1.36085966,67676.0,67675.0,4.84423099]
[1729564517345,1.26248082,67676.0,67675.0,4.84423099]
[1729564518054,1.02618187,67676.0,67675.0,4.84423099]
[1729564518454,1.05343683,67676.0,67675.0,4.84423099]
[1729564519139,1.01724196,67676.0,67675.0,4.84423099]
[1729564520054,1.12724196,67676.0,67675.0,4.84423099]
[1729564521255,0.68396196,67676.0,67675.0,4.84423099]
[1729564522848,0.68396196,67676.0,67675.0,4.49423099]
[1729564522849,1.12724196,67676.0,67675.0,4.49423099]
[1729564523050,1.12724196,67676.0,67675.0,3.20906528]
[1729564523051,1.76344435,67676.0,67675.0,3.20906528]
[1729564523550,1.2088276,67676.0,67675.0,3.20906528]
[1729564523755,1.16344435,67676.0,67675.0,3.20906528]
[1729564524444,1.20882737,67676.0,67675.0,3.20906528]
[1729564528057,1.2088315,67676.0,67675.0,3.20906528]
[1729564528257,1.25421412,67676.0,67675.0,3.20906528]
[1729564529255,1.2088315,67676.0,67675.0,3.20906528]
[1729564531461,1.17262498,67676.0,67675.0,3.20906528]
[1729564531758,1.20883104,67676.0,67675.0,3.20906528]
[1729564532149,1.17262498,67676.0,67675.0,3.20906528]
[1729564532552,1.36791589,67676.0,67675.0,3.04631015]
[1729564532749,1.32253287,67676.0,67675.0,3.04631015]
[1729564533545,1.32253287,67676.0,67675.0,2.80957989]
[1729564533950,1.39085419,67676.0,67675.0,2.80957989]
[1729564534146,1.99085419,67676.0,67675.0,2.45957989]
[1729564534550,1.50085419,67676.0,67675.0,2.1488536]
[1729564534750,1.39085419,67676.0,67675.0,2.1488536]
[1729564535152,1.99085419,67676.0,67675.0,2.1488536]
[1729564535660,1.99085419,67676.0,67675.0,1.86940828]
[1729564536351,1.21470646,67676.0,67675.0,1.86940828]
[1729564536549,1.4479764,67676.0,67675.0,1.86940828]
[1729564536751,1.36638514,67676.0,67675.0,1.86940828]
[1729564537056,1.44797637,67676.0,67675.0,1.86940828]
[1729564537255,1.51629769,67676.0,67675.0,1.86940828]
[1729564537754,1.44797637,67676.0,67675.0,1.86940828]
[1729564539663,1.38730154,67676.0,67675.0,1.86940828]
[1729564541456,1.38730157,67676.0,67675.0,1.86940828]
[1729564542259,1.62266157,67676.0,67675.0,1.86940828]
[1729564542570,0.95937723,67676.0,67675.0,1.86940828]
[1729564542752,1.06937641,67676.0,67675.0,1.86940828]
[1729564542957,1.01635322,67676.0,67675.0,1.86940828]
[1729564543357,0.65555322,67676.0,67675.0,1.86940828]
[1729564544767,1.01635322,67676.0,67675.0,1.86940828]
[1729564545558,0.65555322,67676.0,67675.0,1.86940828]
[1729564546251,0.76555322,67676.0,67675.0,1.86940828]
[1729564546460,0.65555322,67676.0,67675.0,1.86940828]
[1729564547651,0.83755561,67676.0,67675.0,1.63269533]
[1729564548568,0.83755561,67676.0,67675.0,1.45934601]
[1729564549263,0.76924594,67676.0,67675.0,1.45934601]
[1729564550760,0.83755561,67676.0,67675.0,1.45934601]
[1729564551360,0.83754126,67676.0,67675.0,1.45934601]
[1729564551566,0.83754125,67676.0,67675.0,1.45934601]
[1729564553263,0.76923158,67676.0,67675.0,1.45934601]
[1729564553458,0.83754125,67676.0,67675.0,1.45934601]
[1729564553768,0.83754125,67676.0,67675.0,1.22264473]
[1729564554562,0.61016311,67676.0,67675.0,1.22264473]
[1729564556458,0.61016254,67676.0,67675.0,1.22264473]
[1729564557168,0.50016254,67676.0,67675.0,1.22264473]
[1729564557367,0.61016254,67676.0,67675.0,1.22264473]
[1729564557665,0.57396196,67676.0,67675.0,1.22264473]
[1729564561155,0.46396196,67676.0,67675.0,1.22264473]
[1729564561370,0.57396196,67676.0,67675.0,1.22264473]
[1729564562667,0.5713041,67676.0,67675.0,1.10038026]
[1729564562866,0.4973971,67676.0,67675.0,1.28428826]
[1729564563763,0.46119618,67676.0,67675.0,1.28428826]
[1729564565564,0.49739297,67676.0,67675.0,1.28428826]
[1729564565958,0.49739297,67676.0,67675.0,1.10038026]
[1729564568466,0.49739297,67676.0,67673.0,0.02723826]
[1729564568770,0.49739297,67676.0,67669.0,0.12848]
[1729564568771,0.13459297,67675.0,67674.0,0.073909]
[1729564569472,0.13459297,67675.0,67674.0,0.183909]
[1729564569671,0.3628,67676.0,67674.0,0.183909]
[1729564570272,0.3618,67676.0,67674.0,0.183909]
[1729564570474,0.001,67675.0,67674.0,0.183909]
[1729564570871,0.111,67675.0,67674.0,0.073909]
[1729564571578,0.112,67675.0,67674.0,0.076909]
[1729564572172,0.002,67675.0,67674.0,0.076909]
[1729564573181,0.001,67675.0,67674.0,0.076909]
[1729564573976,0.112,67675.0,67674.0,0.076909]
[1729564574673,0.002,67675.0,67674.0,0.186909]
[1729564575168,0.002,67675.0,67674.0,0.076909]
[1729564576570,0.002,67675.0,67674.0,0.003]
[1729564576782,0.075908,67675.0,67674.0,0.003]
[1729564578490,0.245908,67675.0,67674.0,0.003]
[1729564579878,0.689188,67675.0,67674.0,0.003]
[1729564580078,0.245908,67675.0,67674.0,0.003]
[1729564582971,0.073923,67661.0,67660.0,0.00221697]
[1729564583185,0.604723,67661.0,67660.0,0.00221697]
[1729564584677,0.7393434,67661.0,67660.0,0.00221697]
[1729564585578,0.7533434,67661.0,67660.0,0.00221697]
[1729564585774,0.6794204,67661.0,67660.0,0.07614097]
[1729564585979,0.5094204,67661.0,67660.0,0.07614097]
[1729564586180,0.5234204,67661.0,67660.0,0.07614097]
[1729564586776,0.47039043,67661.0,67660.0,0.07614097]
[1729564586982,0.64039043,67661.0,67660.0,0.07614097]
[1729564587590,0.64039043,67661.0,67660.0,0.00221697]
[1729564589094,0.66707667,67661.0,67660.0,0.00221697]
[1729564589286,0.66707524,67661.0,67660.0,0.00221697]
[1729564593803,0.74099824,67661.0,67660.0,0.00221697]
[1729564593994,0.65940924,67661.0,67660.0,0.00221697]
[1729564600414,0.59940924,67661.0,67660.0,0.00221697]
[1729564604228,0.58640924,67661.0,67660.0,0.04628727]
[1729564605120,0.57240924,67661.0,67660.0,0.04628727]
[1729564605420,0.57340924,67661.0,67660.0,0.00221697]
[1729564607221,0.57340924,67661.0,67652.0,0.07339084]
[1729564607222,0.71948624,67661.0,67652.0,0.07339084]
[1729564607421,0.073938,67647.0,67641.0,0.073944]
[1729564607611,0.5808,67642.0,67641.0,0.073944]
[1729564607812,0.71545054,67642.0,67640.0,0.00221733]
[1729564608018,0.13465054,67641.0,67640.0,0.00221733]
[1729564609217,0.14465054,67641.0,67640.0,0.00221733]
[1729564610129,0.22759554,67641.0,67640.0,0.00221733]
[1729564610329,0.50695626,67641.0,67640.0,0.00221733]
[1729564610729,0.56000105,67641.0,67640.0,0.00221733]
[1729564610937,0.56000646,67641.0,67640.0,0.00221733]
[1729564611229,0.50696167,67641.0,67640.0,0.00221733]
[1729564611529,0.34455911,67641.0,67640.0,0.00221733]
[1729564611739,0.70535912,67641.0,67614.0,0.434774]
[1729564611923,0.17,67624.0,67623.0,0.50016257]
[1729564612230,0.76716656,67624.0,67623.0,0.42619757]
[1729564612426,0.073969,67619.0,67614.0,0.073974]
[1729564612728,0.66546453,67624.0,67614.0,0.073974]
[1729564612729,0.5308,67615.0,67614.0,0.073974]
[1729564612925,0.66546453,67615.0,67614.0,0.073974]
[1729564613328,0.61244151,67615.0,67614.0,0.073974]
[1729564614127,0.25764151,67615.0,67614.0,0.073974]
[1729564614324,0.61844151,67615.0,67614.0,0.073974]
[1729564614833,0.2817018,67615.0,67614.0,0.60333871]
[1729564615029,0.4517018,67615.0,67614.0,0.60333871]
[1729564615221,0.4517018,67615.0,67614.0,0.58837007]